[Event "*** Titled Tuesday Blitz"]
[Site "Chess.com"]
[Date "2019.12.03"]
[Round "10"]
[White "piscatorox"]
[Black "Zq1"]
[Result "0-1"]
[WhiteElo "2288"]
[BlackElo "2551"]
[TimeControl "180+2"]
[EndTime "15:18:26 PST"]
[Termination "Zq1 won by checkmate"]

1. e4 {[%clk 0:03:01.9]} 1... c5 {[%clk 0:03:00.3]} 2. Nf3 {[%clk 0:03:02.2]}
2... d6 {[%clk 0:03:01.5]} 3. d4 {[%clk 0:03:02.7]} 3... cxd4 {[%clk 0:03:02.8]}
4. Qxd4 {[%clk 0:03:03.9]} 4... a6 {[%clk 0:03:02.9]} 5. h3 {[%clk 0:03:04]}
5... e6 {[%clk 0:03:03.7]} 6. c4 {[%clk 0:03:02.5]} 6... Nf6 {[%clk 0:03:04.7]}
7. Nc3 {[%clk 0:03:00.8]} 7... Be7 {[%clk 0:03:05.8]} 8. Be2 {[%clk 0:02:59.4]}
8... b6 {[%clk 0:03:07]} 9. O-O {[%clk 0:02:48.6]} 9... Bb7 {[%clk 0:03:08.1]}
10. b3 {[%clk 0:02:44.4]} 10... Qc7 {[%clk 0:03:08.3]} 11. Bb2 {[%clk
0:02:43.3]} 11... Nbd7 {[%clk 0:03:09.3]} 12. Rfd1 {[%clk 0:02:32.6]} 12... O-O
{[%clk 0:03:09.2]} 13. Rac1 {[%clk 0:02:20.7]} 13... Rfd8 {[%clk 0:03:09.4]} 14.
g4 {[%clk 0:01:57.3]} 14... Ne5 {[%clk 0:03:05.4]} 15. Qe3 {[%clk 0:01:41.4]}
15... Nxf3+ {[%clk 0:03:02.9]} 16. Bxf3 {[%clk 0:01:41.4]} 16... h6 {[%clk
0:03:02.7]} 17. Bg2 {[%clk 0:01:36.9]} 17... Nd7 {[%clk 0:03:02.6]} 18. Kh1
{[%clk 0:01:20]} 18... Bg5 {[%clk 0:03:00.4]} 19. f4 {[%clk 0:01:17.7]} 19...
Bf6 {[%clk 0:03:01.6]} 20. Na4 {[%clk 0:00:58.7]} 20... e5 {[%clk 0:02:48.3]}
21. Nc3 {[%clk 0:00:54.4]} 21... exf4 {[%clk 0:02:48.3]} 22. Qxf4 {[%clk
0:00:29]} 22... Bg5 {[%clk 0:02:45.7]} 23. Qxd6 {[%clk 0:00:26.8]} 23... Qxd6
{[%clk 0:02:46.3]} 24. Rxd6 {[%clk 0:00:27.3]} 24... Bxc1 {[%clk 0:02:46.6]} 25.
Bxc1 {[%clk 0:00:28.1]} 25... b5 {[%clk 0:02:38.3]} 26. cxb5 {[%clk 0:00:23.3]}
26... axb5 {[%clk 0:02:39.1]} 27. a4 {[%clk 0:00:18.6]} 27... Rac8 {[%clk
0:02:34.8]} 28. Bd2 {[%clk 0:00:14.9]} 28... bxa4 {[%clk 0:02:18.4]} 29. Nxa4
{[%clk 0:00:15.4]} 29... Nf6 {[%clk 0:02:10.8]} 30. Rxd8+ {[%clk 0:00:14.7]}
30... Rxd8 {[%clk 0:02:11.5]} 31. Bc3 {[%clk 0:00:15.7]} 31... Nxe4 {[%clk
0:02:06.3]} 32. Bxe4 {[%clk 0:00:15.6]} 32... Bxe4+ {[%clk 0:02:06.5]} 33. Kh2
{[%clk 0:00:17.5]} 33... Bc2 {[%clk 0:02:06.2]} 34. Nc5 {[%clk 0:00:17]} 34...
Bxb3 {[%clk 0:02:00.3]} 35. Ba5 {[%clk 0:00:17.8]} 35... Rb8 {[%clk 0:01:55.3]}
36. Nxb3 {[%clk 0:00:17.6]} 36... Rxb3 {[%clk 0:01:55.9]} 37. Bc7 {[%clk
0:00:18.1]} 37... f6 {[%clk 0:01:56.2]} 38. Bf4 {[%clk 0:00:18.6]} 38... Kf7
{[%clk 0:01:57.2]} 39. Kg2 {[%clk 0:00:19.2]} 39... Kg6 {[%clk 0:01:58.4]} 40.
Bc1 {[%clk 0:00:18.9]} 40... Rc3 {[%clk 0:01:57.3]} 41. Bf4 {[%clk 0:00:19.6]}
41... h5 {[%clk 0:01:58.1]} 42. Kh2 {[%clk 0:00:10]} 42... Rf3 {[%clk
0:01:51.6]} 43. Bc1 {[%clk 0:00:09.9]} 43... hxg4 {[%clk 0:01:51.5]} 44. hxg4
{[%clk 0:00:10.8]} 44... f5 {[%clk 0:01:52.9]} 45. gxf5+ {[%clk 0:00:06.5]}
45... Kxf5 {[%clk 0:01:54.2]} 46. Kg2 {[%clk 0:00:07.6]} 46... Kg4 {[%clk
0:01:55.5]} 47. Bb2 {[%clk 0:00:06.3]} 47... g5 {[%clk 0:01:54.2]} 48. Bg7
{[%clk 0:00:07.6]} 48... Rd3 {[%clk 0:01:54.4]} 49. Bh6 {[%clk 0:00:07.3]} 49...
Rd6 {[%clk 0:01:53.4]} 50. Bg7 {[%clk 0:00:07.2]} 50... Rd2+ {[%clk 0:01:53.9]}
51. Kf1 {[%clk 0:00:08.6]} 51... Kf3 {[%clk 0:01:54.8]} 52. Bh6 {[%clk
0:00:08.8]} 52... Rd1# {[%clk 0:01:54.2]} 0-1

[Event "*** Titled Tuesday Blitz"]
[Site "Chess.com"]
[Date "2019.12.03"]
[Round "10"]
[White "jefferyx"]
[Black "Bigfish1995"]
[Result "1-0"]
[WhiteElo "2919"]
[BlackElo "2988"]
[TimeControl "180+2"]
[EndTime "15:18:32 PST"]
[Termination "jefferyx won by resignation"]

1. e4 {[%clk 0:03:01.9]} 1... c5 {[%clk 0:03:00.6]} 2. Nf3 {[%clk 0:03:02.7]}
2... Nc6 {[%clk 0:03:01.9]} 3. Nc3 {[%clk 0:03:03.2]} 3... e5 {[%clk 0:03:02.4]}
4. Bc4 {[%clk 0:03:03.4]} 4... d6 {[%clk 0:03:03.6]} 5. d3 {[%clk 0:03:04.7]}
5... Be7 {[%clk 0:03:04.9]} 6. Nd2 {[%clk 0:03:06.1]} 6... Bg5 {[%clk
0:03:00.8]} 7. Nf1 {[%clk 0:02:50.6]} 7... h5 {[%clk 0:02:59.1]} 8. Nd5 {[%clk
0:02:33.2]} 8... Bxc1 {[%clk 0:02:58.2]} 9. Qxc1 {[%clk 0:02:35.1]} 9... Be6
{[%clk 0:02:55.8]} 10. c3 {[%clk 0:02:09.6]} 10... a6 {[%clk 0:02:24.5]} 11. a4
{[%clk 0:02:06.8]} 11... Na5 {[%clk 0:02:14.3]} 12. Nfe3 {[%clk 0:02:06.8]}
12... Nxc4 {[%clk 0:02:01.3]} 13. dxc4 {[%clk 0:02:08.7]} 13... Nf6 {[%clk
0:01:55]} 14. Nxf6+ {[%clk 0:01:58.5]} 14... Qxf6 {[%clk 0:01:55.9]} 15. Qd1
{[%clk 0:02:00.4]} 15... Rd8 {[%clk 0:01:55.9]} 16. Qb3 {[%clk 0:02:01.5]} 16...
Rd7 {[%clk 0:01:55.7]} 17. Rd1 {[%clk 0:02:00.2]} 17... h4 {[%clk 0:01:51.5]}
18. h3 {[%clk 0:01:48.7]} 18... g6 {[%clk 0:01:49.4]} 19. Qb6 {[%clk 0:01:48.6]}
19... Qf4 {[%clk 0:01:50.5]} 20. Rxd6 {[%clk 0:01:46.2]} 20... Qxe4 {[%clk
0:01:45.2]} 21. O-O {[%clk 0:01:42.8]} 21... O-O {[%clk 0:01:32.3]} 22. Rxd7
{[%clk 0:01:11.3]} 22... Bxd7 {[%clk 0:01:30.5]} 23. Nd5 {[%clk 0:01:13.2]}
23... Qd3 {[%clk 0:01:17.9]} 24. Qd6 {[%clk 0:01:09.2]} 24... Bf5 {[%clk
0:01:10.5]} 25. Qxe5 {[%clk 0:01:06]} 25... Qxc4 {[%clk 0:01:04.1]} 26. Ne7+
{[%clk 0:00:54.1]} 26... Kh7 {[%clk 0:01:02.8]} 27. Nxf5 {[%clk 0:00:56]} 27...
gxf5 {[%clk 0:01:02.4]} 28. Qxf5+ {[%clk 0:00:57.9]} 28... Kg7 {[%clk
0:00:59.3]} 29. Re1 {[%clk 0:00:58.7]} 29... Qxa4 {[%clk 0:00:52.5]} 30. Qg5+
{[%clk 0:00:36.8]} 30... Kh7 {[%clk 0:00:52.9]} 31. Qh5+ {[%clk 0:00:38.7]}
31... Kg7 {[%clk 0:00:53.7]} 32. Re5 {[%clk 0:00:34.1]} 32... Qf4 {[%clk
0:00:45]} 33. Rf5 {[%clk 0:00:21.9]} 33... Qd6 {[%clk 0:00:23.2]} 34. Qg4+
{[%clk 0:00:21.1]} 1-0

[Event "*** Titled Tuesday Blitz"]
[Site "Chess.com"]
[Date "2019.12.03"]
[Round "10"]
[White "MatthewG-p4p"]
[Black "KRASAVCHIK2002"]
[Result "0-1"]
[WhiteElo "2776"]
[BlackElo "2522"]
[TimeControl "180+2"]
[EndTime "15:18:39 PST"]
[Termination "KRASAVCHIK2002 won by resignation"]

1. f4 {[%clk 0:02:59.2]} 1... c5 {[%clk 0:02:50.2]} 2. Nf3 {[%clk 0:02:59.6]}
2... d5 {[%clk 0:02:47.6]} 3. g3 {[%clk 0:02:52.3]} 3... Nc6 {[%clk 0:02:47.7]}
4. Bg2 {[%clk 0:02:53.9]} 4... Bg4 {[%clk 0:02:45.6]} 5. O-O {[%clk 0:02:50.6]}
5... Bxf3 {[%clk 0:02:44.3]} 6. Bxf3 {[%clk 0:02:52.5]} 6... e6 {[%clk
0:02:45.5]} 7. d3 {[%clk 0:02:53.8]} 7... Nf6 {[%clk 0:02:44.8]} 8. Nc3 {[%clk
0:02:53.2]} 8... Be7 {[%clk 0:02:44.6]} 9. e4 {[%clk 0:02:54.1]} 9... dxe4
{[%clk 0:02:43.7]} 10. dxe4 {[%clk 0:02:56]} 10... Qxd1 {[%clk 0:02:44]} 11.
Bxd1 {[%clk 0:02:56.2]} 11... O-O-O {[%clk 0:02:43]} 12. Be3 {[%clk 0:02:56]}
12... Nd4 {[%clk 0:02:40.5]} 13. Bf2 {[%clk 0:02:51.3]} 13... a6 {[%clk
0:02:35.8]} 14. e5 {[%clk 0:02:51.7]} 14... Nd5 {[%clk 0:02:33.3]} 15. Ne4
{[%clk 0:02:52.7]} 15... b6 {[%clk 0:02:25.4]} 16. c3 {[%clk 0:02:52.3]} 16...
Nc6 {[%clk 0:02:24.1]} 17. Be2 {[%clk 0:02:50.1]} 17... Kb7 {[%clk 0:02:23.8]}
18. Bf3 {[%clk 0:02:51.5]} 18... Rd7 {[%clk 0:02:11.4]} 19. Rfd1 {[%clk
0:02:51.4]} 19... Rhd8 {[%clk 0:02:11.4]} 20. Rd2 {[%clk 0:02:51.1]} 20... Kc7
{[%clk 0:02:12]} 21. Rad1 {[%clk 0:02:48.9]} 21... f5 {[%clk 0:02:00.7]} 22.
exf6 {[%clk 0:02:34.2]} 22... gxf6 {[%clk 0:02:00.9]} 23. Bg2 {[%clk 0:02:04.5]}
23... f5 {[%clk 0:01:46]} 24. Ng5 {[%clk 0:02:04.8]} 24... Bxg5 {[%clk
0:01:46.8]} 25. fxg5 {[%clk 0:02:06.7]} 25... Ne5 {[%clk 0:01:44.5]} 26. h3
{[%clk 0:01:59.7]} 26... Ne7 {[%clk 0:01:24.1]} 27. Rxd7+ {[%clk 0:02:00.4]}
27... Rxd7 {[%clk 0:01:26]} 28. Re1 {[%clk 0:02:02.1]} 28... N7g6 {[%clk
0:01:19.5]} 29. h4 {[%clk 0:01:55.5]} 29... Ng4 {[%clk 0:01:08.5]} 30. Rxe6
{[%clk 0:01:56.3]} 30... Rd2 {[%clk 0:01:05.6]} 31. Be3 {[%clk 0:01:51.7]} 31...
Rd1+ {[%clk 0:00:51.7]} 32. Bf1 {[%clk 0:01:48.8]} 32... Kd7 {[%clk 0:00:49]}
33. Rxb6 {[%clk 0:01:36.8]} 33... Nxe3 {[%clk 0:00:47.8]} 34. Kf2 {[%clk
0:01:38]} 34... Nxf1 {[%clk 0:00:44.6]} 35. Ke2 {[%clk 0:01:39]} 35... Rb1
{[%clk 0:00:43.6]} 36. Rb7+ {[%clk 0:01:31.4]} 36... Ke6 {[%clk 0:00:35.9]} 37.
Rxh7 {[%clk 0:01:33.3]} 37... Nxg3+ {[%clk 0:00:35.2]} 38. Kf3 {[%clk
0:01:34.9]} 38... Ne4 {[%clk 0:00:32.2]} 39. Rh6 {[%clk 0:01:28.9]} 39... Kf7
{[%clk 0:00:32.2]} 40. Rh7+ {[%clk 0:01:30.3]} 40... Kg8 {[%clk 0:00:29]} 41.
Rb7 {[%clk 0:01:31.3]} 41... Rf1+ {[%clk 0:00:21.8]} 42. Ke2 {[%clk 0:01:31.9]}
42... Rh1 {[%clk 0:00:19.7]} 43. Rb6 {[%clk 0:01:30.9]} 43... Nxh4 {[%clk
0:00:20.3]} 44. Rxa6 {[%clk 0:01:31.4]} 44... Rh2+ {[%clk 0:00:21.4]} 45. Kd3
{[%clk 0:01:32.9]} 45... Rxb2 {[%clk 0:00:21.5]} 46. Ra7 {[%clk 0:01:31.5]}
46... Nxg5 {[%clk 0:00:21.8]} 47. Ke3 {[%clk 0:01:30.7]} 47... Ng6 {[%clk
0:00:21.2]} 48. a4 {[%clk 0:01:30.6]} 48... f4+ {[%clk 0:00:22.1]} 49. Kd3
{[%clk 0:01:32.1]} 49... f3 {[%clk 0:00:23.5]} 50. Ke3 {[%clk 0:01:29.9]} 50...
f2 {[%clk 0:00:24.6]} 51. Ra8+ {[%clk 0:01:31.3]} 51... Kg7 {[%clk 0:00:23.7]}
0-1

[Event "*** Titled Tuesday Blitz"]
[Site "Chess.com"]
[Date "2019.12.03"]
[Round "10"]
[White "WorldChampionBulletChess"]
[Black "Nancy11111"]
[Result "0-1"]
[WhiteElo "2101"]
[BlackElo "2324"]
[TimeControl "180+2"]
[EndTime "15:18:40 PST"]
[Termination "Nancy11111 won by resignation"]

1. e4 {[%clk 0:03:01.9]} 1... c5 {[%clk 0:02:59.7]} 2. Nf3 {[%clk 0:03:03.1]}
2... d6 {[%clk 0:02:59.9]} 3. c3 {[%clk 0:03:04.5]} 3... Nc6 {[%clk 0:02:59.7]}
4. Be2 {[%clk 0:03:05.3]} 4... Nf6 {[%clk 0:02:59.9]} 5. Qc2 {[%clk 0:03:05.9]}
5... g6 {[%clk 0:03:00.8]} 6. O-O {[%clk 0:03:06.9]} 6... Bg7 {[%clk 0:03:02]}
7. d4 {[%clk 0:02:36.5]} 7... cxd4 {[%clk 0:03:02.4]} 8. cxd4 {[%clk 0:02:38.4]}
8... O-O {[%clk 0:03:02.2]} 9. h3 {[%clk 0:02:29.1]} 9... a5 {[%clk 0:02:57.9]}
10. Nc3 {[%clk 0:02:25.7]} 10... Bd7 {[%clk 0:02:48.2]} 11. Be3 {[%clk
0:02:24.6]} 11... Rc8 {[%clk 0:02:47.5]} 12. a3 {[%clk 0:02:22.3]} 12... e6
{[%clk 0:02:45.9]} 13. Rac1 {[%clk 0:02:19]} 13... Qe7 {[%clk 0:02:45.4]} 14. d5
{[%clk 0:02:09]} 14... exd5 {[%clk 0:02:43.7]} 15. exd5 {[%clk 0:02:10.5]} 15...
Ne5 {[%clk 0:02:44.2]} 16. Qb3 {[%clk 0:01:33.4]} 16... Rb8 {[%clk 0:02:04.1]}
17. Bb6 {[%clk 0:01:26.9]} 17... a4 {[%clk 0:02:00.4]} 18. Qb4 {[%clk
0:01:24.4]} 18... Rfc8 {[%clk 0:01:58.1]} 19. Nxe5 {[%clk 0:01:07.6]} 19... Qxe5
{[%clk 0:01:57.4]} 20. Bf3 {[%clk 0:01:08.7]} 20... Qg5 {[%clk 0:01:48.5]} 21.
Kh1 {[%clk 0:00:44.6]} 21... Nxd5 {[%clk 0:01:44.5]} 22. Nxd5 {[%clk 0:00:39.5]}
22... Rxc1 {[%clk 0:01:42.3]} 23. Rxc1 {[%clk 0:00:38.3]} 23... Qxc1+ {[%clk
0:01:42.2]} 24. Kh2 {[%clk 0:00:39.9]} 24... Be5+ {[%clk 0:01:42.5]} 25. g3
{[%clk 0:00:41.4]} 25... Qxb2 {[%clk 0:01:38.6]} 26. Qh4 {[%clk 0:00:39.3]}
26... Bc6 {[%clk 0:01:30]} 27. Ne7+ {[%clk 0:00:38.9]} 27... Kg7 {[%clk
0:01:30.1]} 28. Be3 {[%clk 0:00:30.5]} 28... Bxf3 {[%clk 0:01:10.3]} 29. Nf5+
{[%clk 0:00:16.9]} 29... gxf5 {[%clk 0:00:59.2]} 30. Qg5+ {[%clk 0:00:13.3]}
30... Kh8 {[%clk 0:00:58.8]} 31. Qxf5 {[%clk 0:00:14.4]} 31... Bc6 {[%clk
0:00:53.3]} 32. Qxf7 {[%clk 0:00:08.8]} 32... Qb1 {[%clk 0:00:48.7]} 33. f3
{[%clk 0:00:03.1]} 33... Qc2+ {[%clk 0:00:49.3]} 34. Kg1 {[%clk 0:00:02.8]}
34... Qd1+ {[%clk 0:00:49.7]} 35. Kf2 {[%clk 0:00:03.7]} 35... Qxf3+ {[%clk
0:00:46.2]} 36. Qxf3 {[%clk 0:00:03.5]} 36... Bxf3 {[%clk 0:00:48.1]} 0-1

[Event "*** Titled Tuesday Blitz"]
[Site "Chess.com"]
[Date "2019.12.03"]
[Round "10"]
[White "INLOVEWITHF"]
[Black "olksuna"]
[Result "0-1"]
[WhiteElo "2448"]
[BlackElo "2583"]
[TimeControl "180+2"]
[EndTime "15:18:51 PST"]
[Termination "olksuna won by resignation"]

1. e4 {[%clk 0:03:01.6]} 1... c5 {[%clk 0:02:56.8]} 2. Nf3 {[%clk 0:03:01.1]}
2... Nc6 {[%clk 0:02:57.1]} 3. d4 {[%clk 0:03:00.7]} 3... cxd4 {[%clk
0:02:58.5]} 4. Nxd4 {[%clk 0:03:02.6]} 4... g6 {[%clk 0:02:59]} 5. c4 {[%clk
0:03:02.4]} 5... Bg7 {[%clk 0:03:00.2]} 6. Be3 {[%clk 0:03:03.1]} 6... Nf6
{[%clk 0:03:01.4]} 7. Nc3 {[%clk 0:03:03.8]} 7... Ng4 {[%clk 0:03:02.8]} 8. Qxg4
{[%clk 0:03:04.2]} 8... Nxd4 {[%clk 0:03:04.2]} 9. Qd1 {[%clk 0:03:05.1]} 9...
e5 {[%clk 0:03:05.6]} 10. Bd3 {[%clk 0:03:06]} 10... d6 {[%clk 0:03:04.9]} 11.
O-O {[%clk 0:03:05.6]} 11... O-O {[%clk 0:03:06.2]} 12. a4 {[%clk 0:03:04.8]}
12... Be6 {[%clk 0:02:58.9]} 13. a5 {[%clk 0:02:59.2]} 13... Rc8 {[%clk
0:02:59.3]} 14. Qa4 {[%clk 0:02:57.1]} 14... f5 {[%clk 0:02:47]} 15. f4 {[%clk
0:02:50.4]} 15... exf4 {[%clk 0:02:42.8]} 16. Bxf4 {[%clk 0:02:49.9]} 16... g5
{[%clk 0:02:43.9]} 17. exf5 {[%clk 0:02:48.3]} 17... Bxf5 {[%clk 0:02:36.4]} 18.
Bxf5 {[%clk 0:02:46.9]} 18... Rxf5 {[%clk 0:02:37.7]} 19. Be3 {[%clk 0:02:40.3]}
19... Rcc5 {[%clk 0:02:28.5]} 20. a6 {[%clk 0:02:32.7]} 20... Ra5 {[%clk
0:02:05.9]} 21. Qd1 {[%clk 0:02:31.5]} 21... Rxf1+ {[%clk 0:02:07.1]} 22. Qxf1
{[%clk 0:02:31.3]} 22... Rxa1 {[%clk 0:02:08.1]} 23. Qxa1 {[%clk 0:02:30.8]}
23... Nc2 {[%clk 0:01:37.4]} 24. Qc1 {[%clk 0:02:29.1]} 24... Nxe3 {[%clk
0:01:38.3]} 25. Qxe3 {[%clk 0:02:31]} 25... bxa6 {[%clk 0:01:40.2]} 26. Qxa7
{[%clk 0:02:21.7]} 26... Qc8 {[%clk 0:01:15.5]} 27. Nd5 {[%clk 0:02:12.6]} 27...
Qxc4 {[%clk 0:01:10.2]} 28. Qb8+ {[%clk 0:02:02.6]} 28... Kf7 {[%clk 0:01:06.7]}
29. Qb7+ {[%clk 0:01:57.3]} 29... Ke6 {[%clk 0:00:32.4]} 30. Nc7+ {[%clk
0:01:39.7]} 30... Kf5 {[%clk 0:00:29.5]} 31. Qc8+ {[%clk 0:01:36.6]} 31... Ke4
{[%clk 0:00:30.2]} 32. Qg4+ {[%clk 0:01:29.9]} 32... Kd3 {[%clk 0:00:30.9]} 33.
Qd1+ {[%clk 0:01:26.7]} 33... Ke4 {[%clk 0:00:27.1]} 34. Qf3+ {[%clk 0:01:24.1]}
34... Ke5 {[%clk 0:00:22.9]} 35. Qg3+ {[%clk 0:01:19.9]} 35... Kf5 {[%clk
0:00:21.5]} 36. Qf3+ {[%clk 0:00:42.8]} 36... Kg6 {[%clk 0:00:22]} 37. Nd5
{[%clk 0:00:25.4]} 37... Bd4+ {[%clk 0:00:21]} 38. Ne3 {[%clk 0:00:25.9]} 38...
Qc1+ {[%clk 0:00:22.2]} 39. Kf2 {[%clk 0:00:26]} 39... Qd2+ {[%clk 0:00:22.3]}
0-1

[Event "*** Titled Tuesday Blitz"]
[Site "Chess.com"]
[Date "2019.12.03"]
[Round "10"]
[White "Vyacheslav_N"]
[Black "Sergey85Rodchenkov"]
[Result "0-1"]
[WhiteElo "2437"]
[BlackElo "2501"]
[TimeControl "180+2"]
[EndTime "15:18:52 PST"]
[Termination "Sergey85Rodchenkov won by checkmate"]

1. e4 {[%clk 0:03:01.9]} 1... c5 {[%clk 0:03:00]} 2. Nf3 {[%clk 0:03:02.1]} 2...
e6 {[%clk 0:03:01.4]} 3. c4 {[%clk 0:03:00.9]} 3... a6 {[%clk 0:02:58]} 4. Nc3
{[%clk 0:03:01.2]} 4... Qc7 {[%clk 0:02:54]} 5. d4 {[%clk 0:03:02.2]} 5... cxd4
{[%clk 0:02:54.6]} 6. Nxd4 {[%clk 0:03:03.9]} 6... b6 {[%clk 0:02:55.5]} 7. Be2
{[%clk 0:03:03.7]} 7... Bb7 {[%clk 0:02:56.4]} 8. O-O {[%clk 0:03:04.8]} 8...
Nf6 {[%clk 0:02:56.9]} 9. f3 {[%clk 0:03:05.1]} 9... Bd6 {[%clk 0:02:56.6]} 10.
Ncb5 {[%clk 0:02:26.5]} 10... axb5 {[%clk 0:02:56.6]} 11. Nxb5 {[%clk
0:02:28.4]} 11... Bc5+ {[%clk 0:02:48.8]} 12. Kh1 {[%clk 0:02:28.9]} 12... Qc6
{[%clk 0:01:55.8]} 13. e5 {[%clk 0:02:25.3]} 13... Nh5 {[%clk 0:01:54.9]} 14. g4
{[%clk 0:02:22.7]} 14... Ng3+ {[%clk 0:01:40.2]} 15. hxg3 {[%clk 0:02:21.7]}
15... h5 {[%clk 0:01:41.9]} 16. g5 {[%clk 0:02:15.8]} 16... d5 {[%clk
0:01:34.4]} 17. exd6 {[%clk 0:02:12.9]} 17... O-O {[%clk 0:01:32.6]} 18. Bd3
{[%clk 0:02:04.4]} 18... Qd7 {[%clk 0:01:30.4]} 19. Be4 {[%clk 0:02:00.8]} 19...
Nc6 {[%clk 0:01:31.5]} 20. f4 {[%clk 0:01:53]} 20... g6 {[%clk 0:01:25.5]} 21.
Kh2 {[%clk 0:01:49.9]} 21... f5 {[%clk 0:01:10]} 22. gxf6 {[%clk 0:01:38.1]}
22... Rxf6 {[%clk 0:01:10.8]} 23. Bd2 {[%clk 0:01:37.1]} 23... e5 {[%clk
0:01:02.6]} 24. Bd5+ {[%clk 0:01:04.5]} 24... Kh7 {[%clk 0:00:58.8]} 25. fxe5
{[%clk 0:01:02.3]} 25... Rxf1 {[%clk 0:00:58.4]} 26. Qxf1 {[%clk 0:01:04.2]}
26... Nxe5 {[%clk 0:00:57.9]} 27. Nc7 {[%clk 0:00:42.1]} 27... Ng4+ {[%clk
0:00:47.6]} 28. Kg2 {[%clk 0:00:35]} 28... Bxd6 {[%clk 0:00:27.6]} 29. Ne6
{[%clk 0:00:12]} 29... Qxe6 {[%clk 0:00:26.5]} 30. Bxb7 {[%clk 0:00:10.1]} 30...
Rf8 {[%clk 0:00:27.9]} 31. Bf3 {[%clk 0:00:07.4]} 31... Qe5 {[%clk 0:00:24.9]}
32. Bf4 {[%clk 0:00:07.8]} 32... Rxf4 {[%clk 0:00:24.7]} 33. gxf4 {[%clk
0:00:08.1]} 33... Qxf4 {[%clk 0:00:26.3]} 34. Bxg4 {[%clk 0:00:04.6]} 34... Qg3+
{[%clk 0:00:25.2]} 35. Kh1 {[%clk 0:00:04.9]} 35... Qh2# {[%clk 0:00:26.4]} 0-1

[Event "*** Titled Tuesday Blitz"]
[Site "Chess.com"]
[Date "2019.12.03"]
[Round "10"]
[White "Olga_Zhuravleva"]
[Black "MasterKroket"]
[Result "1-0"]
[WhiteElo "2271"]
[BlackElo "2413"]
[TimeControl "180+2"]
[EndTime "15:19:12 PST"]
[Termination "Olga_Zhuravleva won by resignation"]

1. e4 {[%clk 0:03:01.9]} 1... c5 {[%clk 0:03:00.5]} 2. Nf3 {[%clk 0:03:02.3]}
2... e6 {[%clk 0:03:01.7]} 3. d4 {[%clk 0:03:03.3]} 3... cxd4 {[%clk 0:03:03.6]}
4. Nxd4 {[%clk 0:03:04.7]} 4... Nc6 {[%clk 0:03:05.2]} 5. Nc3 {[%clk 0:03:05.8]}
5... Qc7 {[%clk 0:03:06.6]} 6. f4 {[%clk 0:03:05.7]} 6... Nxd4 {[%clk 0:03:06]}
7. Qxd4 {[%clk 0:03:06.2]} 7... b6 {[%clk 0:03:07.7]} 8. Qd3 {[%clk 0:02:59.4]}
8... Bb7 {[%clk 0:03:03.9]} 9. Be2 {[%clk 0:02:56.8]} 9... Nf6 {[%clk
0:03:01.9]} 10. O-O {[%clk 0:02:57.3]} 10... Bb4 {[%clk 0:02:56.4]} 11. Bf3
{[%clk 0:02:56.1]} 11... O-O {[%clk 0:02:47.9]} 12. Bd2 {[%clk 0:02:53.1]} 12...
a5 {[%clk 0:02:36]} 13. Nb5 {[%clk 0:02:18.8]} 13... Bc5+ {[%clk 0:02:34.3]} 14.
Kh1 {[%clk 0:02:17.6]} 14... Qb8 {[%clk 0:02:32.3]} 15. c4 {[%clk 0:02:12.7]}
15... Rd8 {[%clk 0:02:27.2]} 16. e5 {[%clk 0:02:07.5]} 16... Ne8 {[%clk
0:02:24.9]} 17. Bxb7 {[%clk 0:01:49.6]} 17... Qxb7 {[%clk 0:02:24.5]} 18. f5
{[%clk 0:01:51.2]} 18... d5 {[%clk 0:02:15.7]} 19. fxe6 {[%clk 0:01:44.7]} 19...
fxe6 {[%clk 0:02:16.1]} 20. Qh3 {[%clk 0:01:41.3]} 20... Qe7 {[%clk 0:02:07.5]}
21. cxd5 {[%clk 0:01:23.8]} 21... Rxd5 {[%clk 0:02:05.4]} 22. Bg5 {[%clk
0:01:13.6]} 22... Qd7 {[%clk 0:01:57.8]} 23. Nc3 {[%clk 0:01:06.8]} 23... Rxe5
{[%clk 0:01:55.6]} 24. Rad1 {[%clk 0:01:06.4]} 24... Qc6 {[%clk 0:01:53.8]} 25.
Qg3 {[%clk 0:00:56.6]} 25... Bd6 {[%clk 0:01:41.5]} 26. Bf4 {[%clk 0:00:55.6]}
26... Rf5 {[%clk 0:01:21.6]} 27. Bxd6 {[%clk 0:00:50.2]} 27... Nxd6 {[%clk
0:01:12.2]} 28. Rfe1 {[%clk 0:00:39.5]} 28... Raf8 {[%clk 0:01:05.7]} 29. h3
{[%clk 0:00:39.8]} 29... Nf7 {[%clk 0:00:51.5]} 30. Ne4 {[%clk 0:00:33.8]} 30...
Ne5 {[%clk 0:00:44.3]} 31. Nd6 {[%clk 0:00:31.6]} 31... Nf3 {[%clk 0:00:10.6]}
32. Nxf5 {[%clk 0:00:28.1]} 32... Rxf5 {[%clk 0:00:11.9]} 33. Rd8+ {[%clk
0:00:20.4]} 33... Kf7 {[%clk 0:00:11.1]} 34. Red1 {[%clk 0:00:21.7]} 34... Ne5
{[%clk 0:00:10.2]} 35. Qc3 {[%clk 0:00:18.3]} 35... Qe4 {[%clk 0:00:09.3]} 36.
Qc7+ {[%clk 0:00:18.4]} 36... Kg6 {[%clk 0:00:10.9]} 37. Rg8 {[%clk 0:00:17.1]}
37... Kh5 {[%clk 0:00:08.4]} 38. Qxg7 {[%clk 0:00:17.1]} 38... Kh4 {[%clk
0:00:05.3]} 39. Qxh7+ {[%clk 0:00:17.3]} 1-0